bitfinex/quotes_ETHUSD_20220201
["timestamp","ask_amount","ask_price","bid_price","bid_amount"]
[1643744904862,0.00965845,2762.8,2761.9,2.46815943]
[1643744905064,0.00965845,2762.8,2761.9,0.1809]
[1643744905065,0.3758075,2762.6,2761.9,0.1809]
[1643744905265,0.00965845,2762.8,2761.9,0.1809]
[1643744905471,0.00965845,2762.8,2761.9,2.61479382]
[1643744905665,0.00965845,2762.8,2761.9,2.91479382]
[1643744905865,0.1809,2763.0,2761.9,3.2339343]
[1643744905866,0.19055695,2763.0,2761.9,3.2339343]
[1643744906065,0.00965695,2763.0,2761.9,3.2339343]
[1643744906266,0.35103286,2763.0,2762.0,3.9779]
[1643744906504,0.35103286,2763.0,2762.9,0.85288533]
[1643744906713,0.00965695,2763.0,2762.9,0.85288533]
[1643744907107,0.00965695,2763.0,2762.3,2.51107673]
[1643744907308,0.00965695,2763.0,2762.3,0.1809]
[1643744907709,0.40046044,2763.0,2762.3,0.1809]
[1643744908111,0.40046044,2763.0,2762.2,1.3464]
[1643744908510,0.40046044,2763.0,2762.7,0.8267641]
[1643744909513,0.00965695,2763.0,2762.7,0.8267641]
[1643744910865,0.00965695,2763.0,2762.8,2.24762507]
[1643744911267,5.14294,2764.2,2762.7,1.4267641]
[1643744911268,0.00965862,2763.5,2762.7,1.4267641]
[1643744912072,0.32888824,2763.5,2762.7,1.4267641]
[1643744912272,0.32888824,2763.5,2763.2,0.84745145]
[1643744912668,0.32888824,2763.5,2762.7,2.34642486]
[1643744912869,0.32888824,2763.5,2762.8,0.1809]
[1643744913270,0.32888824,2763.5,2762.7,0.1809]
[1643744913669,0.00965862,2763.5,2762.7,0.1809]
[1643744914709,0.39374071,2763.5,2763.1,0.92277109]
[1643744916517,0.00965862,2763.5,2763.1,0.87277109]
[1643744916719,0.00965862,2763.5,2763.1,1.17277109]
[1643744917318,0.00965862,2763.5,2763.1,1.47277109]
[1643744918367,0.00965862,2763.5,2763.1,2.4808054]
[1643744918567,0.00965862,2763.5,2763.1,1.17277109]
[1643744918771,0.00965862,2763.5,2763.1,2.47277109]
[1643744919470,0.00965862,2763.5,2763.2,1.08552]
[1643744919674,0.00965862,2763.5,2763.4,6.98113]
[1643744919870,0.00965862,2763.5,2763.4,7.28113]
[1643744920069,0.00965862,2763.5,2763.4,15.99953]
[1643744921269,0.19055945,2764.6,2764.1,0.86583558]
[1643744921524,1.52670366,2764.5,2763.4,16.91534035]
[1643744921711,0.36635148,2764.2,2763.5,1.0]
[1643744921912,0.1809,2764.4,2763.5,1.0]
[1643744922115,0.1809,2764.5,2763.5,1.0]
[1643744922919,0.42589702,2764.2,2763.4,9.17604575]
[1643744923119,0.42589702,2764.2,2763.4,7.79048575]
[1643744923318,0.42589702,2764.2,2763.4,7.24048575]
[1643744923319,1.70777714,2764.1,2763.4,7.24048575]
[1643744923517,0.1809,2764.1,2763.4,7.24048575]
[1643744923717,0.1809,2764.1,2763.4,7.54048575]
[1643744923918,0.38876216,2763.7,2763.4,7.24048575]
[1643744924519,1.70802917,2763.6,2763.4,5.61154209]
[1643744924719,0.1809,2763.6,2763.4,5.61154209]
[1643744925755,0.38876216,2763.7,2763.4,5.61154209]
[1643744925956,1.52715829,2763.6,2763.4,5.61154209]
[1643744926161,1.52715829,2763.6,2763.5,0.00808778]
[1643744926861,4.13234647,2763.6,2763.4,5.15220183]
[1643744927064,0.56966216,2763.7,2763.4,2.59884817]
[1643744927065,11.53128558,2763.5,2763.4,2.59884817]
[1643744927262,12.65038558,2763.5,2763.4,1.64039346]
[1643744927466,12.65038558,2763.5,2762.7,0.25]
[1643744927467,22.39020654,2763.4,2762.7,0.25]
[1643744927663,22.39020654,2763.4,2762.0,0.00164945]
[1643744927664,0.01217199,2762.8,2762.0,0.00164945]
[1643744927865,0.99999999,2762.2,2761.6,0.00164945]
[1643744928067,0.99999999,2761.8,2761.6,0.00164945]
[1643744928265,8.84913291,2761.7,2761.6,0.00164945]
[1643744928464,21.1,2761.6,2761.2,0.25]
[1643744928664,21.1,2761.6,2761.0,0.2867]
[1643744928665,2.04926363,2761.5,2761.0,0.2867]
[1643744928864,21.51098383,2761.4,2761.0,0.2867]
[1643744929112,0.521,2761.3,2761.0,0.2867]
[1643744929312,0.1809,2761.2,2761.0,0.2867]
[1643744929509,1.3562086,2761.1,2761.0,0.2867]
[1643744929711,1.5371086,2761.1,2761.0,0.2867]
[1643744929909,0.7019,2761.1,2761.0,0.2867]
[1643744931317,0.521,2761.1,2761.0,0.2867]
[1643744931518,3.14751064,2761.1,2761.0,0.2867]
[1643744931723,0.821,2761.1,2761.0,0.2867]
[1643744931916,22.921,2761.1,2761.0,0.2867]
[1643744932317,0.521,2761.1,2761.0,0.2867]
[1643744932519,0.7019,2761.1,2761.0,0.2867]
[1643744933762,0.521,2761.1,2761.0,0.2867]
[1643744933964,0.91598579,2761.4,2761.0,0.2867]
[1643744934163,0.43508579,2761.4,2761.0,0.2867]
[1643744934969,0.521,2761.3,2761.0,0.2867]
[1643744935167,0.7019,2761.3,2761.0,0.2867]
[1643744935470,21.8019,2761.3,2761.0,0.2867]
[1643744935669,2.46456331,2761.2,2761.0,0.2867]
[1643744935866,0.80344418,2761.2,2761.0,0.2867]
[1643744936069,0.521,2761.1,2761.0,0.2867]
[1643744936275,0.521,2761.1,2761.0,0.28950472]
[1643744936276,0.524782,2761.1,2761.0,0.28950472]
[1643744936921,0.824782,2761.1,2761.0,0.28950472]
[1643744937325,0.524782,2761.1,2761.0,0.28950472]
[1643744939326,0.003782,2761.1,2761.0,0.28950472]
[1643744940359,0.92968176,2761.1,2761.0,0.28950472]
[1643744942160,0.003782,2761.1,2761.0,0.28950472]
[1643744942960,0.003782,2761.1,2761.0,0.00280472]
[1643744944413,0.003782,2761.1,2761.0,6.98370472]
[1643744944807,0.003782,2761.1,2761.0,7.58370472]
[1643744945807,0.33662042,2761.8,2761.0,8.76483472]
[1643744946012,0.33662042,2761.8,2761.1,0.92155158]
[1643744946308,0.33662042,2761.8,2761.2,2.57551802]
[1643744946509,0.33662042,2761.8,2761.6,0.85278191]
[1643744946708,0.33662042,2761.8,2761.0,0.48370472]
[1643744946908,0.33662042,2761.8,2761.0,0.62854172]
[1643744947109,0.33662042,2761.8,2761.0,0.32854172]
[1643744947309,0.33662042,2761.8,2761.0,0.18370472]
[1643744947758,0.72785441,2761.6,2761.0,0.18370472]
[1643744948166,0.40129635,2761.1,2761.0,0.18370472]
[1643744948569,0.40129635,2761.1,2761.0,4.63370472]
[1643744949366,0.40129635,2761.1,2761.0,4.45280472]
[1643744949767,0.184682,2761.8,2761.0,7.19069666]
[1643744949972,0.184682,2761.8,2761.0,7.29219768]
[1643744950169,0.003782,2761.8,2761.1,0.1809]
[1643744950971,0.4112636,2761.5,2761.2,0.8314741]
[1643744951173,0.41016507,2761.5,2761.2,0.83396456]
[1643744951367,0.41016507,2761.5,2761.2,1.13396456]
[1643744951604,0.41016507,2761.5,2761.2,0.83396456]
[1643744952109,0.41016507,2761.5,2761.2,0.00249046]
[1643744952912,0.1908879,2762.1,2761.3,0.82994586]
[1643744953114,0.0099879,2762.1,2761.3,0.82994586]
[1643744953312,0.0099879,2762.1,2761.4,2.3222252]
[1643744953514,0.0099879,2762.1,2761.3,0.82994586]
[1643744953913,0.0099879,2762.1,2761.4,0.90531]
[1643744954112,0.0099879,2762.1,2761.4,1.99147]
[1643744954313,0.0099879,2762.1,2762.0,4.68988973]
[1643744955955,0.37405396,2762.3,2762.0,4.68988973]
[1643744957163,0.00998873,2762.3,2762.0,4.68988973]
[1643744957361,0.00998873,2762.3,2762.0,4.98988973]
[1643744959509,0.00998873,2762.3,2762.1,2.27829576]
[1643744959907,0.00998873,2762.3,2762.1,3.27829576]
[1643744960106,0.00998873,2762.3,2762.2,8.38056068]
[1643744960309,0.00998873,2762.3,2762.2,8.98056068]
[1643744961112,0.19088906,2763.5,2762.2,8.98056068]
[1643744961312,0.19088906,2763.5,2762.4,0.90495]
[1643744961518,0.19088906,2763.5,2762.5,2.42590722]
[1643744961519,0.00998906,2763.5,2762.5,2.42590722]
[1643744961713,0.1809,2763.4,2762.5,2.42590722]
[1643744961912,0.36772709,2763.1,2762.5,0.3]
[1643744962312,0.36772709,2763.1,2762.4,0.90495]
[1643744962512,0.36772709,2763.1,2762.5,0.3]
[1643744962759,0.36772709,2763.1,2762.3,6.03344161]
[1643744963567,0.1809,2763.4,2762.4,0.90496]
[1643744963770,0.00998906,2763.5,2762.4,0.90496]
[1643744963771,0.00998906,2763.5,2762.5,2.96333364]
[1643744964072,0.00998906,2763.5,2762.5,3.26333364]
[1643744964276,0.00998906,2763.5,2762.5,7.04633364]
[1643744964469,0.00998906,2763.5,2763.2,0.94278795]
[1643744964670,0.00998906,2763.5,2762.6,1.8096529]
[1643744964671,0.00998906,2763.5,2763.1,0.74319621]
[1643744965668,0.38753245,2763.6,2763.1,1.04319621]
[1643744965870,0.38753245,2763.6,2763.1,0.74319621]
[1643744969421,0.38753245,2763.6,2763.0,0.144761]
[1643744969822,1.52730853,2763.5,2763.0,0.144761]
[1643744970027,2.52920853,2763.5,2763.0,0.144761]
[1643744970259,1.52730853,2763.4,2763.0,0.144761]
[1643744970461,0.77622633,2763.2,2763.0,0.144761]
[1643744970667,1.70820853,2763.1,2763.0,0.144761]
[1643744970864,1.70820853,2763.1,2762.6,0.00254373]
[1643744970865,24.66537882,2763.1,2762.6,0.00254373]
[1643744971064,24.66537882,2763.1,2762.4,3.1169]
[1643744971065,1.52730853,2763.0,2762.4,3.1169]
[1643744971263,0.7019,2762.9,2762.3,0.25254445]
[1643744971463,0.7019,2762.9,2762.3,0.00254445]
[1643744971464,0.31816759,2762.7,2762.3,0.00254445]
[1643744971667,0.67316717,2762.5,2762.3,0.00254445]
[1643744973064,0.1809,2762.4,2762.3,0.00254445]
[1643744973868,0.1809,2762.6,2762.3,0.00254445]
[1643744974131,0.31816759,2762.7,2762.3,0.00254445]
[1643744974332,0.1809,2762.6,2762.3,0.14736745]
[1643744974736,0.1809,2762.6,2762.3,0.00254445]
[1643744975940,0.1809,2762.6,2761.6,0.91800592]
[1643744975941,0.40773578,2762.0,2761.6,0.91800592]
[1643744976141,0.89734152,2762.4,2761.6,0.91800592]
[1643744976342,0.0099894,2762.4,2761.6,0.91800592]
[1643744976745,0.0099894,2762.4,2761.6,0.77324592]
[1643744977545,0.0099894,2762.4,2761.7,2.2747709]
[1643744977773,0.0099894,2762.4,2761.7,3.0556709]
[1643744977966,0.0099894,2762.4,2761.7,4.06823721]
[1643744978162,0.0099894,2762.4,2761.7,4.97336671]
[1643744978565,0.0099894,2762.4,2761.7,6.15156671]
[1643744978763,0.0099894,2762.4,2762.3,4.79612921]
[1643744979967,0.0099894,2762.4,2762.3,0.84612921]
[1643744980966,0.40083478,2762.8,2762.3,0.84612921]
[1643744981169,0.00998923,2762.8,2762.3,0.84612921]
[1643744981370,0.00998923,2762.8,2762.4,2.2700779]
[1643744981610,0.00998923,2762.8,2762.3,0.84612921]
[1643744982520,0.00998923,2762.8,2762.4,0.1809]
[1643744982715,0.00998923,2762.8,2762.3,0.84612921]
[1643744983819,0.00998923,2762.8,2762.0,0.1809]
[1643744984920,0.00998923,2762.8,2762.5,0.75299673]
[1643744985559,0.00998923,2762.8,2762.6,2.32985256]
[1643744985755,0.1809,2763.5,2762.6,2.32985256]
[1643744985756,0.1908899,2763.5,2762.6,2.32985256]
[1643744985956,1.52724809,2763.4,2762.6,2.32985256]
[1643744986156,1.52724809,2763.4,2763.1,0.8130926]
[1643744986357,1.52724809,2763.4,2762.7,0.1809]
[1643744986657,1.52724809,2763.4,2762.7,2.7712456]
[1643744986857,0.0099899,2763.5,2762.7,3.3712456]
[1643744987056,0.0099899,2763.5,2762.8,1.0]
[1643744987356,0.0099899,2763.5,2762.9,2.55426224]
[1643744987555,0.0099899,2763.5,2762.7,1.6067031]
[1643744987759,1.52714418,2763.4,2762.7,0.7019]
[1643744988458,0.40264856,2763.3,2763.0,0.75357963]
[1643744989321,0.40264856,2763.3,2762.9,0.144758]
[1643744989526,1.52728818,2763.2,2762.9,0.144758]
[1643744989719,2.52918818,2763.2,2762.5,0.00254504]
[1643744989919,1.52728818,2763.1,2762.5,0.00254504]
[1643744990123,0.1809,2763.0,2762.5,0.00254504]
[1643744990321,0.1809,2763.0,2762.5,0.75645523]
[1643744990322,1.52728818,2762.9,2762.5,0.75645523]
[1643744990517,0.85599662,2763.0,2762.5,0.75645523]
[1643744990722,1.70842936,2762.9,2762.5,0.00254504]
[1643744990921,1.52752936,2762.8,2762.5,0.00254504]
[1643744991126,1.52752936,2762.8,2762.2,0.2525454]
[1643744991322,1.52752936,2762.8,2762.2,0.0025454]
[1643744991323,0.1809,2762.7,2762.2,0.0025454]
[1643744991523,1.52752936,2762.6,2762.2,0.0025454]
[1643744991923,0.37631837,2762.4,2762.2,0.0025454]
[1643744992324,0.1809,2762.9,2762.2,0.0025454]
[1643744992525,1.52748607,2762.8,2762.2,0.0025454]
[1643744992758,0.85599662,2763.0,2762.2,0.0025454]
[1643744992966,1.52743217,2762.9,2762.2,0.0025454]
[1643744994363,1.70833217,2762.9,2762.2,0.0025454]
[1643744994562,0.43178338,2762.4,2762.2,0.0025454]
[1643744995764,0.43178338,2762.4,2761.8,0.1809]
[1643744995965,0.86547602,2762.3,2761.8,0.1809]
[1643744996913,1.52777494,2762.2,2761.8,0.1809]
[1643744997114,0.43178338,2762.4,2761.8,0.1809]
[1643744997912,0.38637063,2761.9,2761.8,0.1809]
[1643744998115,0.38637063,2761.9,2761.8,4.6309]
[1643744999512,0.93235873,2762.4,2761.8,4.45]
[1643744999714,0.1809,2762.7,2761.8,6.69416653]
[1643744999913,1.52758238,2762.6,2761.8,6.87506653]
[1643745000115,0.521,2762.8,2761.8,7.35619653]
[1643745000116,0.1809,2762.8,2761.8,7.35619653]
[1643745000359,1.52754778,2762.7,2761.8,6.87506653]
[1643745000559,0.43739217,2762.4,2761.8,7.47506653]
[1643745000771,0.02245749,2762.9,2762.5,0.82181207]
[1643745000772,0.91333559,2762.9,2762.5,0.82181207]
[1643745000967,1.52749255,2762.8,2762.5,0.82181207]
[1643745001567,0.1809,2763.2,2762.5,0.82181207]
[1643745001771,1.52747379,2763.1,2762.5,0.82181207]
[1643745001968,0.38507438,2762.3,2762.0,7.4647394]
[1643745002170,0.1809,2763.0,2762.0,3.9293894]
[1643745002368,3.95913707,2763.8,2762.0,3.9293894]
[1643745002369,1.52740154,2762.9,2762.0,3.9293894]
[1643745002572,0.1809,2763.5,2762.0,3.5453394]
[1643745002770,1.52729494,2763.4,2762.1,2.07136956]
[1643745002968,1.52729494,2763.4,2762.8,0.94452995]
[1643745003371,0.84773676,2764.1,2762.9,2.36528355]
[1643745003569,1.5270997,2764.0,2762.9,2.36528355]
[1643745003769,0.1809,2763.9,2762.9,2.36528355]
[1643745004020,1.5270997,2763.8,2762.7,2.47754252]
[1643745004221,0.84773676,2763.7,2762.6,4.409]
[1643745004421,1.5270997,2763.6,2762.6,4.409]
[1643745004620,0.1809,2763.5,2762.6,4.409]
[1643745004823,1.5270997,2763.4,2762.6,4.409]
[1643745005024,0.91398929,2763.2,2762.7,0.85059454]
[1643745005225,0.42777259,2762.9,2762.7,0.85059454]
[1643745005423,0.42777259,2762.9,2762.4,0.1809]
[1643745006029,0.42777259,2762.9,2762.3,0.1809]
[1643745006225,0.42777259,2762.9,2762.3,2.45013785]
[1643745006425,0.42777259,2762.9,2762.5,0.81351781]
[1643745006829,0.00375096,2763.3,2762.5,0.81351781]
[1643745007132,0.00228118,2763.3,2762.6,2.67146645]
[1643745007330,0.00228118,2763.3,2762.6,2.97146645]
[1643745007531,0.00228118,2763.3,2762.7,4.0586]
[1643745007763,0.00228118,2763.3,2762.8,3.01030281]
[1643745007967,0.00228118,2763.3,2762.8,3.31030281]
[1643745008164,0.00228118,2763.3,2763.0,0.9047]
[1643745008364,0.00228118,2763.3,2763.1,2.42482932]
[1643745008965,0.00228118,2763.3,2763.1,2.72482932]
[1643745009169,0.00228118,2763.3,2763.2,6.94150087]
[1643745010066,0.00228118,2763.3,2763.2,7.78582667]
[1643745010268,0.00228118,2763.3,2763.2,8.78582667]
[1643745010866,0.00228118,2763.3,2763.2,7.78582667]
[1643745011519,0.42832799,2763.9,2763.2,7.78582667]
[1643745011520,1.52717291,2763.8,2763.2,7.78582667]
[1643745011719,1.52717291,2763.8,2763.7,0.67326283]
[1643745011918,1.52717291,2763.8,2763.2,2.34150087]
[1643745012123,1.52717291,2763.8,2763.1,0.3]
[1643745012320,1.52717291,2763.8,2763.1,1.3]
[1643745012521,1.52717291,2763.8,2763.0,1.66203]
[1643745012922,1.52717291,2763.8,2763.0,1.32564]
[1643745013322,2.37616009,2763.8,2763.2,0.89745141]
[1643745013522,1.52717291,2763.7,2763.2,0.89745141]
[1643745013727,1.52717291,2763.6,2763.2,0.89745141]
[1643745013924,0.1809,2764.0,2763.2,0.89745141]
[1643745014130,1.52714423,2763.9,2763.3,2.27866496]
[1643745014324,0.00279954,2764.1,2763.3,2.27866496]
[1643745014325,0.00279954,2764.1,2763.4,0.23118862]
[1643745014526,0.00279954,2764.1,2763.3,4.16279496]
[1643745014729,0.00279954,2764.1,2763.4,8.2375]
[1643745014930,0.00279954,2764.1,2763.5,0.1809]
[1643745015357,0.00279954,2764.1,2763.5,2.1709282]
[1643745015560,0.00279954,2764.1,2763.6,0.90444]
[1643745015757,0.00279954,2764.1,2763.7,0.4809]
[1643745016158,0.00291838,2764.4,2763.7,0.63149568]
[1643745016363,0.00291838,2764.4,2763.8,0.93823592]
[1643745016662,0.00291838,2764.4,2763.9,5.31072992]
[1643745017060,0.00291838,2764.4,2764.0,0.18113]
[1643745017360,0.00291838,2764.4,2764.1,1.80861]
[1643745017559,0.00291838,2764.4,2764.1,4.11635566]
[1643745017759,0.00291838,2764.4,2764.3,3.53048687]
[1643745018562,0.00291838,2764.4,2764.3,0.88048687]
[1643745018763,0.00291838,2764.4,2763.9,0.1807]
[1643745019212,0.18361838,2764.4,2763.9,0.1807]
[1643745019411,1.52690884,2764.3,2763.9,0.1807]
[1643745019612,0.93634308,2764.1,2763.9,0.1807]
[1643745019813,1.52690884,2764.0,2763.9,0.1807]
[1643745020013,1.52690884,2764.0,2763.5,0.78255675]
[1643745020413,1.52690884,2764.0,2763.4,7.2375]
[1643745020614,0.1809,2763.9,2763.6,0.144734]
[1643745020817,1.52690884,2763.8,2763.6,0.144734]
[1643745021022,1.52690884,2763.8,2763.4,7.2375]
[1643745021218,0.90690725,2764.2,2763.4,7.2375]
[1643745021219,0.1809,2764.1,2763.4,7.2375]
[1643745021521,0.44804471,2763.6,2763.4,7.2375]
[1643745022120,0.44804471,2763.6,2763.4,7.98267235]
[1643745025169,0.1809,2764.2,2763.4,7.98267235]
[1643745025366,1.52717586,2764.1,2763.4,7.98267235]
[1643745025967,0.35581521,2763.7,2763.4,7.98267235]
[1643745026370,0.35581521,2763.7,2763.5,0.02102751]
[1643745026825,0.1809,2764.2,2763.5,0.02102751]
[1643745027119,1.52716766,2764.1,2763.7,0.90476]
[1643745027828,2.12716766,2764.1,2763.5,0.02102751]
[1643745028025,2.14206766,2764.0,2763.5,0.02102751]
[1643745028231,1.82716766,2763.9,2763.6,0.90491]
[1643745028426,0.6149,2764.0,2763.6,0.90491]
[1643745028427,1.52716766,2763.8,2763.6,0.90491]
[1643745028625,4.27716766,2763.7,2763.6,0.90491]
[1643745028826,1.52716766,2763.7,2763.6,0.90491]
[1643745030966,1.52716766,2763.7,2763.5,0.16578551]
[1643745031167,0.434,2763.9,2763.5,0.16578551]
[1643745031563,1.52727595,2763.8,2763.7,0.0169175]
[1643745031968,0.375694,2763.7,2763.4,7.99843828]
[1643745032165,0.434,2763.9,2763.4,7.99843828]
[1643745032366,1.52722491,2763.8,2763.4,7.99843828]
[1643745032768,1.52729284,2763.7,2763.4,7.05449753]
[1643745032972,0.434,2763.6,2763.4,7.05449753]
[1643745033170,4.62729284,2763.5,2763.4,7.05449753]
[1643745033373,5.06129284,2763.5,2763.4,7.05449753]
[1643745033771,1.96129284,2763.5,2763.4,7.05449753]
[1643745035029,3.12046353,2763.5,2763.4,7.05449753]
[1643745035836,11.52046353,2763.5,2763.4,3.18012391]
[1643745036039,11.52046353,2763.5,2762.0,2.2726323]
[1643745036040,6.8,2763.3,2762.0,2.2726323]
[1643745036239,6.8,2763.3,2761.7,0.1809]
[1643745036240,0.3,2763.0,2761.7,0.1809]
[1643745036437,0.99999999,2762.6,2761.4,0.18254945]
[1643745036641,1.96129284,2762.5,2761.4,0.18254945]
[1643745036842,1.96129284,2762.5,2760.8,3.8879]
[1643745036843,23.94444385,2762.4,2760.9,0.1809]
[1643745037042,0.6779062,2761.6,2760.8,0.1809]
[1643745037246,6.18622417,2762.3,2760.8,0.1809]
[1643745037247,0.434,2761.5,2760.8,0.1809]
[1643745037440,0.434,2761.4,2760.8,0.1809]
[1643745037867,0.87796253,2761.4,2760.8,0.1809]
[1643745038468,0.87796253,2761.4,2760.7,0.1809]
[1643745040573,0.434,2761.4,2760.8,0.7815964]
[1643745040776,0.434,2761.8,2760.9,0.1809]
[1643745040976,0.434,2762.5,2760.9,3.4364143]
[1643745041175,0.434,2762.5,2761.5,0.01228698]
[1643745041376,0.434,2762.5,2761.6,0.1809]
[1643745041617,1.52800621,2762.4,2761.6,0.1809]
[1643745041816,0.39847683,2761.7,2761.5,0.87184909]
[1643745042016,0.434,2762.5,2761.5,0.87184909]
[1643745042216,0.434,2762.5,2761.6,0.1809]
[1643745043019,0.81310768,2762.1,2761.6,0.1809]
[1643745043219,0.434,2762.5,2761.6,0.1809]
[1643745043619,0.39923084,2762.4,2761.6,0.1809]
[1643745044021,1.96209888,2762.3,2761.6,0.1809]
[1643745044219,0.434,2762.3,2761.5,0.1809]
[1643745044421,2.91471842,2762.3,2761.5,0.1809]
[1643745044623,1.52817478,2762.2,2761.1,0.1809]
[1643745044824,3.04184299,2762.1,2761.1,0.1809]
[1643745045024,0.434,2762.0,2761.1,0.1809]
[1643745045264,0.434,2761.9,2761.1,0.1809]
[1643745045464,0.434,2761.9,2761.2,0.90536]
[1643745045665,0.434,2761.9,2761.3,0.1809]
[1643745046068,0.37488502,2761.5,2761.3,0.1809]
[1643745046468,0.37488502,2761.5,2761.1,0.1809]
[1643745046670,0.37488502,2761.5,2761.0,0.1809]
[1643745046871,0.37488502,2761.5,2761.0,1.08633]
[1643745047868,0.37488502,2761.5,2761.1,0.78757406]
[1643745050508,0.434,2761.9,2761.1,0.78757406]
[1643745050710,0.434,2761.9,2761.2,0.1809]
[1643745051112,0.434,2761.9,2761.6,0.71831601]
[1643745051513,0.37596112,2761.7,2761.6,0.71831601]
[1643745052113,0.1809,2762.2,2761.6,0.71831601]
[1643745052312,0.434,2762.3,2761.6,0.71831601]
[1643745052779,0.434,2762.3,2761.3,0.1809]
[1643745052973,0.1809,2762.2,2761.3,0.1809]
[1643745053170,0.434,2762.3,2761.3,0.1809]
[1643745053373,0.1809,2762.2,2761.3,0.1809]
[1643745053570,0.1809,2762.2,2761.2,0.90952173]
[1643745053772,0.32075641,2761.6,2761.3,0.1809]
[1643745055070,0.1809,2762.2,2761.3,0.1809]
[1643745055671,0.434,2762.1,2761.3,0.1809]
[1643745055874,0.1809,2762.0,2761.4,0.00523345]
[1643745056074,0.434,2761.9,2761.4,0.00523345]
[1643745056275,0.41880419,2761.7,2761.4,0.00523345]
[1643745056519,0.85280419,2761.7,2761.4,0.00523345]
[1643745058628,0.8512487,2761.7,2761.4,0.00523345]
[1643745058828,0.8512487,2761.7,2760.9,0.1809]
[1643745058829,2.68883889,2761.6,2760.9,0.1809]
[1643745059032,0.434,2761.5,2760.9,0.1809]
[1643745059229,0.434,2761.5,2760.9,0.0809]
[1643745059230,7.57339969,2761.3,2760.9,0.0809]
[1643745059430,0.6149,2761.2,2760.9,0.0809]
[1643745059630,0.67954873,2760.7,2760.6,1.1269322]
[1643745059830,8.21354873,2760.7,2760.6,0.63071568]
[1643745060031,6.8,2760.6,2759.8,0.25]
[1643745060273,6.8,2760.6,2758.9,8.424]
[1643745060274,0.99999999,2760.3,2759.1,0.1811]
[1643745060470,0.99999999,2760.3,2759.9,0.04433703]
[1643745060471,2.8741925,2760.2,2759.9,0.04433703]
[1643745060677,7.91855704,2760.0,2759.9,0.04433703]
[1643745060869,7.91855704,2760.0,2759.0,0.04945284]
[1643745060870,8.53365704,2760.0,2759.0,0.04945284]
[1643745061075,1.1811,2759.9,2759.0,0.04945284]
[1643745061270,0.434,2759.8,2759.0,0.04945284]
[1643745061474,0.434,2759.8,2758.7,0.00171093]
[1643745061475,0.1811,2759.7,2758.8,0.05058969]
[1643745061675,0.434,2759.6,2758.8,0.05058969]
[1643745061875,0.434,2759.6,2758.6,3.2886]
[1643745061876,0.31507379,2759.4,2759.3,0.91804259]
[1643745062078,0.31507379,2759.4,2759.0,0.01227931]
[1643745062272,0.31507379,2759.4,2759.3,0.04774757]
[1643745062473,0.31507379,2759.4,2759.1,0.04888442]
[1643745062972,0.6152,2759.9,2759.1,0.04888442]
[1643745063180,0.1812,2759.9,2759.1,0.04888442]
[1643745063574,2.85071772,2760.6,2759.2,0.1811]
[1643745063777,1.0,2760.5,2759.2,0.1811]
[1643745064031,0.1811,2760.4,2759.3,0.04774757]
[1643745064218,0.91122022,2760.1,2759.4,0.88382926]
[1643745064418,0.1811,2760.5,2759.4,0.88382926]
[1643745064621,0.1811,2760.5,2759.5,0.04661072]
[1643745064819,0.44658593,2759.8,2759.5,0.04661072]
[1643745065025,0.1811,2760.5,2759.5,0.04661072]
[1643745065924,0.3681429,2759.9,2759.5,0.04661072]
[1643745066126,0.3681429,2759.9,2759.6,0.1811]
[1643745066524,0.3681429,2759.9,2759.7,0.04547388]
[1643745067128,0.3681429,2759.9,2759.6,0.0460423]
[1643745067330,0.1811,2760.5,2759.6,0.0460423]
[1643745067531,0.07639994,2761.0,2759.8,0.01237696]
[1643745067532,0.1811,2760.8,2759.8,0.01237696]
[1643745067779,0.07639994,2761.0,2759.8,0.01237696]
[1643745067780,0.25749994,2761.0,2759.8,0.01237696]
[1643745067979,0.07639994,2761.0,2759.8,0.01237696]
[1643745068385,0.38818093,2760.4,2759.8,0.01237696]
[1643745068581,0.38818093,2760.4,2759.7,0.1811]
[1643745068981,0.38863062,2759.9,2759.8,6.54490545]
[1643745069383,0.38863062,2759.9,2759.8,0.04490545]
[1643745069582,1.23613824,2760.5,2759.8,0.04490545]
[1643745069782,0.734,2760.5,2759.5,0.22771072]
[1643745070081,0.434,2760.5,2759.6,0.0460423]
[1643745070312,0.434,2760.5,2759.7,0.1811]
[1643745070681,0.32741316,2760.2,2759.8,0.04490545]
[1643745070886,0.32741316,2760.2,2759.9,0.1811]
[1643745071084,0.32741316,2760.2,2760.0,0.82378486]
[1643745071283,0.32741316,2760.2,2760.0,0.86755347]
[1643745071513,0.32741316,2760.2,2760.1,4.84320018]
[1643745072320,0.1811,2760.9,2760.1,4.84320018]
[1643745072818,0.1811,2760.9,2760.2,0.04263176]
[1643745073429,0.43164168,2760.5,2760.2,0.04263176]
[1643745073824,0.1811,2761.1,2760.2,0.04263176]
[1643745074026,0.1811,2761.5,2760.2,0.22376176]
[1643745074225,0.1809,2761.8,2760.2,4.96643176]
[1643745074425,0.1809,2761.8,2760.3,0.04206334]
[1643745074426,1.52860185,2761.7,2760.3,0.04206334]
[1643745074626,0.81534922,2761.5,2760.7,0.83429382]
[1643745074826,1.76888599,2761.9,2760.7,0.83429382]
[1643745074827,0.1809,2761.4,2760.7,0.83429382]
[1643745075027,0.1809,2761.4,2760.7,1.13429382]
[1643745075265,0.1809,2762.1,2760.8,0.1809]
[1643745075468,1.5284067,2762.0,2760.8,0.1809]
[1643745075871,0.1809,2762.1,2761.3,5.36303292]
[1643745075872,0.44376972,2761.4,2761.3,5.36303292]
[1643745076073,0.44376972,2761.4,2761.3,0.66303292]
[1643745076469,0.1809,2762.1,2761.3,0.66303292]
[1643745076670,0.03921872,2763.0,2761.4,0.36203]
[1643745076671,0.1809,2762.5,2761.4,0.36203]
[1643745076971,0.1809,2762.9,2761.4,4.02070187]
[1643745077172,1.52801782,2762.8,2761.4,4.02070187]
[1643745077369,0.3501983,2762.3,2761.5,1.0]
[1643745077568,0.3501983,2762.3,2761.6,0.1809]
[1643745077775,0.79844568,2762.8,2762.0,0.69951498]
[1643745077972,1.70886259,2762.7,2762.0,0.69951498]
[1643745078172,0.1809,2762.7,2762.0,0.69951498]
[1643745078370,1.52795506,2762.6,2762.0,0.69951498]
[1643745078773,0.1809,2762.7,2762.0,0.69951498]
[1643745079422,1.52792179,2762.6,2762.0,0.69951498]
[1643745080024,0.1809,2762.7,2762.0,0.69951498]
[1643745080025,0.41820661,2762.4,2762.0,0.69951498]
[1643745080226,0.41820661,2762.4,2761.6,0.18935544]
[1643745080427,0.41820661,2762.4,2761.6,0.1809]
[1643745080824,2.46165927,2762.3,2761.6,0.1809]